fUSD/lending_fUSD_20240619
["ID","MTS","AMOUNT","RATE_DAILY","PERIOD"]
[329899892,1718807450384,-547.84176427,0.00013698,2]
[329899893,1718807450396,-388.85781381,0.00013698,2]
[329899894,1718807450451,-664.5218409,0.00013698,2]
[329899895,1718807450462,-1515.57194608,0.00013698,2]
[329899896,1718807450471,-592.07,0.00013698,2]
[329899897,1718807450481,-500.0,0.00013698,2]
[329899898,1718807450491,-1390.26,0.00013698,2]
[329899899,1718807450501,-500.0,0.00013698,2]
[329899900,1718807450511,-2118.99,0.00013698,2]
[329899901,1718807450520,-4552.04,0.00013698,2]
[329899902,1718807450530,-728.62,0.00013698,2]
[329899903,1718807450539,-500.0,0.00013698,2]
[329899904,1718807450549,-500.0,0.00013698,2]
[329899905,1718807450559,-1742.69928005,0.00013698,2]
[329899906,1718807450572,-624.22983198,0.00013698,2]
[329899907,1718807450764,150.0,8.968e-05,2]
[329899908,1718807450786,150.0,8.968e-05,2]
[329899909,1718807450807,191.61347004,8.968e-05,2]
[329899910,1718807450829,24189.29133217,8.968e-05,2]
[329899914,1718807481253,1336.693354,8.958e-05,2]
[329899922,1718807511887,7840.61628963,8.958e-05,2]
[329899939,1718807835855,219.36689677,0.0002509,120]
[329899944,1718807951224,-155.0,9.59e-05,2]
[329899945,1718807951246,-529.36748381,9.59e-05,2]
[329899946,1718807951267,-368.63608156,9.591e-05,2]
[329899947,1718807951288,-2826.74041562,9.592e-05,2]
[329899948,1718807951309,-943.59569038,9.595e-05,2]
[329899949,1718807951333,-15176.66032863,9.596e-05,2]
[329899950,1718807959658,-661.17670577,9.592e-05,2]
[329899951,1718807959680,-8723.33967137,9.596e-05,2]
[329899952,1718808004466,182.97,9.875e-05,2]
[329899953,1718808200541,169.71,9.76e-05,2]
[329899954,1718808268122,-3752.2575,0.00010016,2]
[329899955,1718808268147,-156.14015137,0.00010113,2]
[329899956,1718808336744,552.23907051,0.00010113,2]
[329899960,1718808354496,466.032759,0.00010113,2]
[329899966,1718808423570,241.38,0.00025,60]
[329899969,1718808476268,249.76172344,0.00025,60]
[329899970,1718808495407,151.0,0.00020887,30]
[329899971,1718808527093,158.9647594,0.00010066,2]
[329899973,1718808575388,182.97,9.577e-05,2]
[329899999,1718808632349,-538.59625082,0.00010154,2]
[329900000,1718808632359,-339.10074979,0.00010155,2]
[329900001,1718808632369,-543.63325763,0.00010155,2]
[329900002,1718808632378,-206.29106117,0.00010156,2]
[329900003,1718808632387,-155.0,0.00010157,2]
[329900004,1718808632397,-254.00234334,0.00010157,2]
[329900005,1718808632406,-205.21041243,0.00010157,2]
[329900006,1718808632416,-1034.0,0.00010157,2]
[329900007,1718808632425,-368.63608156,0.00010158,2]
[329900008,1718808632435,-300.0,0.00010158,2]
[329900009,1718808632444,-4297.56143634,0.00010159,2]
[329900010,1718808632455,-4451.58833217,0.00010159,2]
[329900011,1718808632464,-529.04223313,0.00010168,2]
[329900012,1718808632473,-150.0,0.00010169,2]
[329900013,1718808632483,-767.96,0.00010171,2]
[329900014,1718808632494,-9372.86380561,0.00010738,2]
[329900015,1718808632504,-466.83,0.00010738,2]
[329900016,1718808632513,-420.0,0.00011172,2]
[329900018,1718808632523,-210.0,0.00011185,2]
[329900019,1718808632532,-2445.45,0.00011972,2]
[329900021,1718808632542,-168.68,0.00012023,2]
[329900024,1718808632552,-6561.31,0.00012023,2]
[329900025,1718808632562,-1913.89,0.00012112,2]
[329900026,1718808632571,-1000.0,0.00012113,2]
[329900027,1718808632582,-800.0,0.00012135,2]
[329900028,1718808632591,-499.99,0.00012135,2]
[329900029,1718808632600,-499.99,0.00012135,2]
[329900030,1718808632609,-2299.23,0.00012194,2]
[329900031,1718808632619,-6695.09,0.00012197,2]
[329900032,1718808632628,-569.73,0.00012197,2]
[329900033,1718808632638,-5584.17,0.00012202,2]
[329900034,1718808632647,-200.0,0.00012208,2]
[329900035,1718808632657,-321.53,0.00012208,2]
[329900036,1718808632666,-999.99,0.00012208,2]
[329900037,1718808632676,-200.0,0.00012208,2]
[329900038,1718808632685,-150.0,0.00012265,2]
[329900039,1718808632695,-216.06,0.00012272,2]
[329900040,1718808632706,-250.0,0.00012275,2]
[329900041,1718808632721,-250.0,0.00012283,2]
[329900042,1718808632730,-587.0,0.00012287,2]
[329900043,1718808632740,-23900.0,0.00012298,2]
[329900044,1718808632750,-207.51,0.00012342,2]
[329900045,1718808632760,-767.96,0.00012435,2]
[329900046,1718808632770,-161.1,0.00012625,2]
[329900047,1718808632779,-161.1,0.00012631,2]
[329900048,1718808632791,-161.1,0.00012636,2]
[329900049,1718808632801,-161.1,0.00012641,2]
[329900050,1718808632811,-161.1,0.00012646,2]
[329900051,1718808632820,-161.1,0.00012652,2]
[329900052,1718808632830,-161.1,0.00012657,2]
[329900053,1718808632840,-161.1,0.00012662,2]
[329900054,1718808632850,-161.1,0.00012667,2]
[329900055,1718808632860,-161.1,0.00012673,2]
[329900056,1718808632870,-161.1,0.00012678,2]
[329900057,1718808632879,-161.1,0.00012683,2]
[329900058,1718808632889,-161.1,0.00012688,2]
[329900059,1718808632899,-852.36,0.00013096,2]
[329900060,1718808632909,-852.36,0.00013096,2]
[329900061,1718808632919,-852.36,0.00013096,2]
[329900062,1718808632928,-443.58,0.00013096,2]
[329900063,1718808632938,-300.0,0.000132,4]
[329900064,1718808632948,-1303.77297521,0.00013272,2]
[329900065,1718808632959,-600.0,0.000133,4]
[329900066,1718808632969,-1000.0,0.000134,4]
[329900067,1718808632978,-204.034,0.0001341,2]
[329900068,1718808632988,-150.0,0.00013412,2]
[329900069,1718808632997,-150.0,0.00013413,2]
[329900070,1718808633007,-150.0,0.00013415,2]
[329900071,1718808633016,-300.0,0.00013417,2]
[329900072,1718808633026,-150.0,0.00013417,2]
[329900073,1718808633035,-1500.0,0.0001342,2]
[329900074,1718808633045,-1007.62917227,0.00013424,2]
[329900075,1718808633055,-150.0,0.00013424,2]
[329900076,1718808633064,-304.60110732,0.00013424,2]
[329900077,1718808633074,-150.0,0.00013426,2]
[329900078,1718808633083,-150.0,0.00013426,2]
[329900079,1718808633093,-150.0,0.00013427,2]
[329900080,1718808633103,-1500.0,0.00013428,2]
[329900081,1718808633112,-150.0,0.00013429,2]
[329900082,1718808633122,-150.0,0.00013434,2]
[329900083,1718808633132,-150.0,0.00013434,2]
[329900084,1718808633142,-150.0,0.00013435,2]
[329900085,1718808633151,-317.46971312,0.00013435,2]
[329900086,1718808633161,-150.0,0.00013435,2]
[329900087,1718808633172,-150.0,0.00013435,2]
[329900088,1718808633181,-150.0,0.00013437,2]
[329900089,1718808633192,-1093.34282859,0.00013437,2]
[329900090,1718808633203,-300.0,0.00013439,2]
[329900091,1718808633213,-150.0,0.00013439,2]
[329900092,1718808633223,-150.0,0.0001344,2]
[329900093,1718808633234,-300.0,0.00013442,2]
[329900094,1718808633245,-150.0,0.00013443,2]
[329900095,1718808633256,-150.0,0.00013447,2]
[329900096,1718808633265,-150.0,0.00013448,2]
[329900097,1718808633275,-150.0,0.0001345,2]
[329900098,1718808633286,-171.28568028,0.0001345,2]
[329900099,1718808633296,-1500.0,0.00013452,2]
[329900100,1718808633307,-1500.0,0.00013454,2]
[329900101,1718808633319,-150.0,0.00013455,2]
[329900102,1718808633330,-300.0,0.00013459,2]
[329900103,1718808633340,-150.0,0.0001346,2]
[329900104,1718808633350,-1500.0,0.00013462,2]
[329900105,1718808633359,-150.0,0.00013462,2]
[329900106,1718808633369,-300.0,0.00013462,2]
[329900107,1718808633379,-1500.0,0.00013463,2]
[329900108,1718808633388,-150.0,0.00013464,2]
[329900109,1718808633398,-150.0,0.00013466,2]
[329900110,1718808633408,-150.0,0.00013468,2]
[329900111,1718808633418,-150.0,0.00013469,2]
[329900112,1718808633427,-302.23252059,0.0001347,2]
[329900113,1718808633437,-150.0,0.0001347,2]
[329900114,1718808633448,-150.0,0.00013471,2]
[329900115,1718808633458,-300.0,0.00013472,2]
[329900116,1718808633467,-150.0,0.00013475,2]
[329900117,1718808633476,-1500.0,0.00013476,2]
[329900118,1718808633486,-150.0,0.00013476,2]
[329900119,1718808633496,-150.0,0.00013477,2]
[329900120,1718808633505,-1500.0,0.00013482,2]
[329900121,1718808633515,-275.51847522,0.00013484,2]
[329900122,1718808633524,-1500.0,0.00013486,2]
[329900123,1718808633534,-300.0,0.00013486,2]
[329900124,1718808633543,-150.0,0.00013492,2]
[329900125,1718808633553,-150.0,0.00013493,2]
[329900126,1718808633562,-150.0,0.00013493,2]
[329900127,1718808633571,-1500.0,0.00013497,2]
[329900128,1718808633581,-1300.0,0.000135,4]
[329900129,1718808633590,-150.0,0.00013503,2]
[329900130,1718808633600,-300.0,0.00013504,2]
[329900131,1718808633609,-150.0,0.00013504,2]
[329900132,1718808633619,-150.0,0.00013504,2]
[329900133,1718808633629,-150.0,0.00013504,2]
[329900134,1718808633638,-150.0,0.00013506,2]
[329900135,1718808633647,-150.0,0.00013506,2]
[329900136,1718808633656,-1500.0,0.00013507,2]
[329900137,1718808633666,-1500.0,0.00013507,2]
[329900138,1718808633676,-150.0,0.00013507,2]
[329900139,1718808633685,-155.46929458,0.00013508,2]
[329900140,1718808633694,-155.78535344,0.00013508,2]
[329900141,1718808633709,-157.91037504,0.00013508,2]
[329900142,1718808633718,-372.59686172,0.00013508,2]
[329900143,1718808633728,-155.0,0.00013508,2]
[329900144,1718808633738,-156.22547839,0.00013508,2]
[329900145,1718808633748,-201.51938811,0.00013508,2]
[329900146,1718808633758,-437.76887833,0.00013508,2]
[329900147,1718808633767,-235.04349533,0.00013508,2]
[329900148,1718808633777,-196.32072544,0.00013508,2]
[329900149,1718808633788,-336.96913982,0.00013508,2]
[329900150,1718808633797,-155.0,0.00013508,2]
[329900151,1718808633807,-166.77018159,0.00013508,2]
[329900152,1718808633816,-283.24040768,0.00013508,2]
[329900153,1718808633826,-208.44076855,0.00013508,2]
[329900154,1718808633836,-1261.74933058,0.00013508,2]
[329900155,1718808633846,-805.64377118,0.00013508,2]
[329900156,1718808633855,-1640.49861521,0.00013508,2]
[329900157,1718808633865,-157.18926011,0.00013508,2]
[329900158,1718808633874,-1607.21613717,0.00013508,2]
[329900159,1718808633884,-225.0,0.00013508,2]
[329900160,1718808633894,-3099.8304553,0.00013508,2]
[329900161,1718808633904,-179.61027811,0.00013508,2]
[329900162,1718808633914,-155.60039783,0.00013508,2]
[329900163,1718808633923,-255.91381025,0.00013508,2]
[329900164,1718808633933,-544.67780636,0.00013508,2]
[329900165,1718808633943,-451.02185696,0.00013508,2]
[329900166,1718808633953,-2559.96948321,0.00013508,2]
[329900167,1718808633964,-299.18046257,0.00013508,2]
[329900168,1718808633973,-155.78851311,0.00013508,2]
[329900169,1718808633983,-156.21833582,0.00013508,2]
[329900171,1718808634286,-1250.47073675,0.00013508,2]
[329900172,1718808634296,-150.0,0.00013508,2]
[329900173,1718808634306,-300.0,0.00013509,2]
[329900174,1718808634315,-181.438468,0.0001351,2]
[329900175,1718808634325,-706.654322,0.0001351,2]
[329900176,1718808634334,-459.387675,0.0001351,2]
[329900177,1718808634343,-26500.438756,0.0001351,2]
[329900178,1718808634352,-47147.830666,0.0001351,2]
[329900179,1718808634362,-181.438468,0.0001351,2]
[329900180,1718808634371,-1522.12236619,0.0001351,2]
[329900181,1718808634381,-150.0,0.00013511,2]
[329900182,1718808634390,-150.0,0.00013513,2]
[329900183,1718808634399,-823.0,0.00013513,2]
[329900184,1718808634408,-150.0,0.00013515,2]
[329900185,1718808634418,-1500.0,0.00013517,2]
[329900186,1718808634427,-150.0,0.00013523,2]
[329900187,1718808634436,-150.0,0.00013523,2]
[329900188,1718808634445,-300.0,0.00013524,2]
[329900189,1718808634456,-150.0,0.00013525,2]
[329900190,1718808634466,-300.0,0.00013526,2]
[329900191,1718808634476,-150.0,0.00013527,2]
[329900192,1718808634485,-150.0,0.00013528,2]
[329900193,1718808634494,-150.0,0.00013528,2]
[329900194,1718808634504,-1500.0,0.00013532,2]
[329900195,1718808634513,-150.0,0.00013535,2]
[329900196,1718808634522,-150.0,0.00013536,2]
[329900197,1718808634531,-150.0,0.00013538,2]
[329900198,1718808634541,-150.0,0.00013543,2]
[329900199,1718808634550,-300.65085854,0.00013546,2]
[329900200,1718808634570,-150.0,0.00013547,2]
[329900201,1718808634580,-150.0,0.00013549,2]
[329900202,1718808634590,-150.0,0.0001355,2]
[329900203,1718808634600,-150.0,0.0001355,2]
[329900204,1718808634610,-150.0,0.00013551,2]
[329900205,1718808634621,-150.0,0.00013552,2]
[329900206,1718808634631,-150.0,0.00013556,2]
[329900207,1718808634641,-150.0,0.00013559,2]
[329900208,1718808634651,-300.0,0.0001356,2]
[329900209,1718808634661,-150.0,0.00013562,2]
[329900210,1718808634671,-150.0,0.00013562,2]
[329900211,1718808634681,-150.0,0.00013569,2]
[329900212,1718808634690,-150.0,0.0001357,2]
[329900213,1718808634701,-150.0,0.00013572,2]
[329900214,1718808634713,-150.0,0.00013574,2]
[329900215,1718808634723,-150.0,0.00013577,2]
[329900216,1718808634734,-150.0,0.00013578,2]
[329900217,1718808634743,-152.28925501,0.00013578,2]
[329900218,1718808634754,-1500.0,0.00013579,2]
[329900219,1718808634764,-150.0,0.0001358,2]
[329900220,1718808634774,-1500.0,0.0001358,2]
[329900221,1718808634784,-150.0,0.00013581,2]
[329900222,1718808634797,-300.0,0.00013585,2]
[329900223,1718808634808,-150.0,0.00013586,2]
[329900224,1718808634818,-300.0,0.00013586,2]
[329900225,1718808634828,-1500.0,0.00013587,2]
[329900226,1718808634839,-150.0,0.00013588,2]
[329900227,1718808634848,-150.0,0.00013588,2]
[329900228,1718808634858,-150.0,0.00013589,2]
[329900229,1718808634868,-219.54,0.00013589,3]
[329900230,1718808634878,-150.0,0.0001359,2]
[329900231,1718808634888,-150.0,0.00013591,2]
[329900232,1718808634898,-150.0,0.00013592,2]
[329900233,1718808634907,-150.0,0.00013593,2]
[329900234,1718808634918,-150.0,0.00013594,2]
[329900235,1718808634928,-153.8523447,0.00013594,2]
[329900236,1718808634938,-150.0,0.00013595,2]
[329900237,1718808634949,-150.0,0.00013595,2]
[329900238,1718808634959,-150.0,0.00013597,2]
[329900239,1718808634969,-150.0,0.00013597,2]
[329900240,1718808634978,-150.0,0.00013598,2]
[329900241,1718808634988,-331.11276341,0.00013598,2]
[329900242,1718808634997,-1700.0,0.000136,4]
[329900243,1718808635007,-150.0,0.00013603,2]
[329900244,1718808635017,-150.0,0.00013604,2]
[329900245,1718808635027,-1500.0,0.00013604,2]
[329900246,1718808635037,-150.0,0.00013606,2]
[329900247,1718808635047,-300.0,0.00013609,2]
[329900248,1718808635057,-300.0,0.0001361,2]
[329900249,1718808635067,-150.0,0.00013616,2]
[329900250,1718808635077,-150.0,0.00013621,2]
[329900251,1718808635087,-150.0,0.00013622,2]
[329900252,1718808635097,-150.0,0.00013623,2]
[329900253,1718808635107,-150.0,0.00013624,2]
[329900254,1718808635116,-150.0,0.00013624,2]
[329900255,1718808635126,-150.0,0.00013625,2]
[329900256,1718808635135,-150.0,0.00013626,2]
[329900257,1718808635146,-150.0,0.0001363,2]
[329900258,1718808635155,-152.28925497,0.00013632,2]
[329900259,1718808635165,-150.0,0.00013632,2]
[329900260,1718808635175,-150.0,0.00013633,2]
[329900261,1718808635184,-1500.0,0.00013633,2]
[329900262,1718808635194,-1500.0,0.00013633,2]
[329900263,1718808635206,-300.0,0.00013638,2]
[329900264,1718808635215,-150.0,0.00013638,2]
[329900265,1718808635224,-150.0,0.00013638,2]
[329900266,1718808635234,-300.0,0.00013639,2]
[329900267,1718808635243,-301.24273878,0.0001364,2]
[329900268,1718808635253,-1500.0,0.00013641,2]
[329900269,1718808635262,-150.0,0.00013642,2]
[329900270,1718808635272,-1500.0,0.00013644,2]
[329900271,1718808635281,-150.0,0.00013644,2]
[329900272,1718808635291,-150.0,0.00013645,2]
[329900273,1718808635300,-150.0,0.00013648,2]
[329900274,1718808635310,-800.0,0.00013651,2]
[329900275,1718808635319,-150.0,0.00013652,2]
[329900276,1718808635328,-150.0,0.00013654,2]
[329900277,1718808635339,-150.0,0.00013654,2]
[329900278,1718808635348,-300.0,0.00013656,2]
[329900279,1718808635357,-150.0,0.00013656,2]
[329900280,1718808635367,-150.0,0.00013656,2]
[329900281,1718808635378,-150.0,0.00013658,2]
[329900282,1718808635387,-150.0,0.00013659,2]
[329900283,1718808635397,-150.0,0.0001366,2]
[329900284,1718808635406,-150.0,0.0001366,2]
[329900285,1718808635416,-1500.0,0.00013662,2]
[329900286,1718808635425,-150.0,0.00013663,2]
[329900287,1718808635435,-150.0,0.00013663,2]
[329900288,1718808635444,-150.0,0.00013667,2]
[329900289,1718808635455,-152.36409454,0.0001367,2]
[329900290,1718808635464,-150.0,0.00013672,2]
[329900291,1718808635473,-150.0,0.00013674,2]
[329900292,1718808635483,-150.0,0.00013674,2]
[329900293,1718808635492,-150.0,0.00013675,2]
[329900294,1718808635501,-150.0,0.00013675,2]
[329900295,1718808635511,-150.0,0.00013677,2]
[329900296,1718808635520,-150.0,0.00013677,2]
[329900297,1718808635530,-181.438468,0.00013678,2]
[329900298,1718808635539,-706.654322,0.00013678,2]
[329900299,1718808635549,-459.387675,0.00013678,2]
[329900300,1718808635558,-26500.438756,0.00013678,2]
[329900301,1718808635568,-47147.830666,0.00013678,2]
[329900302,1718808635578,-181.438468,0.00013678,2]
[329900303,1718808635587,-300.0,0.0001368,2]
[329900304,1718808635597,-150.0,0.00013681,2]
[329900305,1718808635607,-150.0,0.00013682,2]
[329900306,1718808635616,-150.0,0.00013682,2]
[329900307,1718808635626,-150.0,0.00013683,2]
[329900308,1718808635635,-150.0,0.00013684,2]
[329900309,1718808635649,-150.0,0.00013685,2]
[329900310,1718808635659,-152.28925497,0.00013685,2]
[329900311,1718808635668,-304.7507942,0.00013686,2]
[329900312,1718808635679,-4275.5290395,0.00013686,2]
[329900313,1718808635688,-7829.7507887,0.00013687,2]
[329900314,1718808635699,-150.0,0.00013692,2]
[329900315,1718808635714,-612.0,0.00013696,2]
[329900316,1718808635724,-167.53228713,0.00013696,2]
[329900317,1718808635734,-1850.83981327,0.00013696,2]
[329900318,1718808635744,-608.05093024,0.00013696,2]
[329900319,1718808635755,-239.01330994,0.00013696,2]
[329900320,1718808635766,-209.06685343,0.00013697,2]
[329900321,1718808635776,-3029.85719431,0.00013697,2]
[329900322,1718808635787,-1984.02117843,0.00013698,2]
[329900323,1718808635799,-256.53070187,0.00013698,2]
[329900324,1718808635810,-12743.11591516,0.00013698,2]
[329900325,1718808635821,-2000.0,0.00013698,2]
[329900326,1718808635832,-200.0,0.00013698,2]
[329900327,1718808635844,-152.325455,0.00013698,2]
[329900328,1718808635856,-500.0,0.00013698,2]
[329900329,1718808635867,-500.0,0.00013698,2]
[329900330,1718808635877,-500.0,0.00013698,2]
[329900331,1718808635888,-151.0,0.00013698,2]
[329900332,1718808635898,-151.0,0.00013698,2]
[329900333,1718808635908,-775.48,0.00013698,2]
[329900334,1718808635918,-500.0,0.00013698,2]
[329900335,1718808635928,-758.54,0.00013698,2]
[329900336,1718808635938,-652.44,0.00013698,2]
[329900337,1718808635949,-655.53,0.00013698,2]
[329900338,1718808635959,-500.0,0.00013698,2]
[329900339,1718808635968,-500.0,0.00013698,2]
[329900340,1718808635978,-567.92,0.00013698,2]
[329900341,1718808635988,-571.28,0.00013698,2]
[329900342,1718808635998,-344.21870842,0.00013698,2]
[329900343,1718808636008,-748.13,0.00013698,2]
[329900344,1718808636018,-500.0,0.00013698,2]
[329900345,1718808636028,-500.0,0.00013698,2]
[329900346,1718808636038,-512.73,0.00013698,2]
[329900347,1718808636048,-500.0,0.00013698,2]
[329900348,1718808636058,-500.0,0.00013698,2]
[329900349,1718808636067,-500.0,0.00013698,2]
[329900350,1718808636077,-500.0,0.00013698,2]
[329900351,1718808636087,-742.13,0.00013698,2]
[329900352,1718808636097,-609.34,0.00013698,2]
[329900353,1718808636107,-688.66,0.00013698,2]
[329900354,1718808636117,-679.21,0.00013698,2]
[329900355,1718808636127,-641.82,0.00013698,2]
[329900356,1718808636136,-500.0,0.00013698,2]
[329900357,1718808636146,-824.73,0.00013698,2]
[329900358,1718808636156,-500.0,0.00013698,2]
[329900359,1718808636167,-500.0,0.00013698,2]
[329900360,1718808636177,-500.0,0.00013698,2]
[329900361,1718808636186,-500.0,0.00013698,2]
[329900362,1718808636196,-500.0,0.00013698,2]
[329900363,1718808636206,-500.0,0.00013698,2]
[329900364,1718808636215,-545.0,0.00013698,2]
[329900365,1718808636225,-2644.38,0.00013698,2]
[329900366,1718808636235,-500.0,0.00013698,2]
[329900367,1718808636245,-500.0,0.00013698,2]
[329900368,1718808636255,-151.0,0.00013698,2]
[329900369,1718808636266,-151.0,0.00013698,2]
[329900370,1718808636277,-500.0,0.00013698,2]
[329900371,1718808636288,-680.27,0.00013698,2]
[329900372,1718808636299,-1331.02,0.00013698,2]
[329900373,1718808636310,-567.4,0.00013698,2]
[329900374,1718808636320,-500.0,0.00013698,2]
[329900375,1718808636330,-500.0,0.00013698,2]
[329900376,1718808636341,-500.0,0.00013698,2]
[329900377,1718808636351,-2043.33,0.00013698,2]
[329900378,1718808636361,-500.0,0.00013698,2]
[329900379,1718808636373,-848.58,0.00013698,2]
[329900380,1718808636382,-865.54,0.00013698,2]
[329900381,1718808636392,-649.39,0.00013698,2]
[329900382,1718808636402,-500.0,0.00013698,2]
[329900383,1718808636413,-949.16,0.00013698,2]
[329900384,1718808636423,-500.98,0.00013698,2]
[329900385,1718808636433,-572.37,0.00013698,2]
[329900386,1718808636444,-934.14,0.00013698,2]
[329900387,1718808636455,-151.0,0.00013698,2]
[329900388,1718808636465,-151.0,0.00013698,2]
[329900389,1718808636476,-877.23,0.00013698,2]
[329900390,1718808636486,-151.0,0.00013698,2]
[329900391,1718808636496,-151.0,0.00013698,2]
[329900392,1718808636506,-151.0,0.00013698,2]
[329900393,1718808636517,-155.021893,0.00013698,2]
[329900394,1718808636526,-500.0,0.00013698,2]
[329900395,1718808636536,-500.0,0.00013698,2]
[329900396,1718808636545,-500.0,0.00013698,2]
[329900397,1718808636557,-614.25,0.00013698,2]
[329900398,1718808636566,-500.0,0.00013698,2]
[329900399,1718808636576,-500.0,0.00013698,2]
[329900400,1718808636586,-500.0,0.00013698,2]
[329900401,1718808636595,-500.0,0.00013698,2]
[329900402,1718808636605,-500.0,0.00013698,2]
[329900403,1718808636614,-500.0,0.00013698,2]
[329900404,1718808636624,-1135.72,0.00013698,2]
[329900405,1718808636633,-820.26,0.00013698,2]
[329900406,1718808636643,-151.0,0.00013698,2]
[329900407,1718808636652,-500.0,0.00013698,2]
[329900408,1718808636662,-1172.86,0.00013698,2]
[329900409,1718808636671,-1729.27,0.00013698,2]
[329900410,1718808636681,-1428.51,0.00013698,2]
[329900411,1718808636691,-500.0,0.00013698,2]
[329900412,1718808636701,-500.0,0.00013698,2]
[329900413,1718808636715,-353.76445178,0.00013698,2]
[329900414,1718808636728,-151.0,0.00013698,2]
[329900415,1718808636738,-500.0,0.00013698,2]
[329900416,1718808636749,-203.250678,0.00013698,2]
[329900417,1718808636758,-1387.98,0.00013698,2]
[329900418,1718808636769,-500.0,0.00013698,2]
[329900419,1718808636779,-1154.46,0.00013698,2]
[329900420,1718808636794,-714.39,0.00013698,2]
[329900421,1718808636804,-500.0,0.00013698,2]
[329900422,1718808636814,-500.0,0.00013698,2]
[329900423,1718808636824,-500.0,0.00013698,2]
[329900424,1718808636833,-925.38,0.00013698,2]
[329900425,1718808636844,-151.0,0.00013698,2]
[329900426,1718808636854,-151.0,0.00013698,2]
[329900427,1718808636864,-500.0,0.00013698,2]
[329900428,1718808636874,-500.0,0.00013698,2]
[329900429,1718808636884,-708.87,0.00013698,2]
[329900430,1718808636894,-500.0,0.00013698,2]
[329900431,1718808636903,-500.0,0.00013698,2]
[329900432,1718808636913,-500.0,0.00013698,2]
[329900433,1718808636923,-1381.95,0.00013698,2]
[329900434,1718808636933,-500.0,0.00013698,2]
[329900435,1718808636945,-500.0,0.00013698,2]
[329900436,1718808636956,-500.0,0.00013698,2]
[329900437,1718808636966,-656.17,0.00013698,2]
[329900438,1718808636976,-500.0,0.00013698,2]
[329900439,1718808636986,-500.0,0.00013698,2]
[329900440,1718808636996,-500.0,0.00013698,2]
[329900441,1718808637006,-500.0,0.00013698,2]
[329900442,1718808637016,-854.4,0.00013698,2]
[329900443,1718808637026,-729.25,0.00013698,2]
[329900444,1718808637036,-1960.7,0.00013698,2]
[329900445,1718808637046,-881.26,0.00013698,2]
[329900446,1718808637056,-500.0,0.00013698,2]
[329900447,1718808637067,-519.91,0.00013698,2]
[329900448,1718808637076,-500.0,0.00013698,2]
[329900449,1718808637087,-610.12,0.00013698,2]
[329900450,1718808637097,-500.0,0.00013698,2]
[329900451,1718808637107,-1178.91,0.00013698,2]
[329900452,1718808637117,-500.0,0.00013698,2]
[329900453,1718808637128,-500.0,0.00013698,2]
[329900454,1718808637139,-1250.1,0.00013698,2]
[329900455,1718808637149,-500.0,0.00013698,2]
[329900456,1718808637159,-1363.36,0.00013698,2]
[329900457,1718808637169,-500.0,0.00013698,2]
[329900458,1718808637180,-1170.46,0.00013698,2]
[329900459,1718808637190,-1657.94,0.00013698,2]
[329900460,1718808637200,-570.86,0.00013698,2]
[329900461,1718808637210,-500.0,0.00013698,2]
[329900462,1718808637220,-500.0,0.00013698,2]